bitfinex-derivatives/quotes_BNBF0:USTF0_20250523
["timestamp","ask_amount","ask_price","bid_price","bid_amount"]
[1748037034774,1.09288092,663.23,662.83,1.08299939]
[1748037035073,1.09288092,663.22,662.83,1.08299939]
[1748037035275,1.09288092,663.21,662.83,1.08299939]
[1748037035470,1.09288092,663.2,662.83,1.08299939]
[1748037035670,1.11581188,663.27,662.84,1.08299939]
[1748037035875,1.56605479,663.26,662.84,1.08299939]
[1748037036075,1.09283709,663.25,662.84,1.08299939]
[1748037036279,1.09283709,663.24,662.84,1.08299939]
[1748037036479,1.09283709,663.23,662.84,1.08299939]
[1748037036671,1.09283709,663.22,662.84,1.08299939]
[1748037036877,1.09283709,663.21,662.84,1.08299939]
[1748037037077,1.09283709,663.2,662.84,1.08299939]
[1748037037277,1.09279522,663.19,662.84,1.08299939]
[1748037037479,1.11581188,663.27,662.84,1.08299939]
[1748037037678,1.56595534,663.26,662.84,1.08299939]
[1748037037878,1.09276743,663.25,662.84,1.08299939]
[1748037038077,1.09276743,663.24,662.84,1.08299939]
[1748037038275,1.09276743,663.23,662.84,1.08299939]
[1748037038478,1.09276743,663.22,662.84,1.08299939]
[1748037038678,1.09276743,663.21,662.84,1.08299939]
[1748037038872,1.11581188,663.27,662.85,1.08299939]
[1748037039075,1.09271479,663.26,662.85,1.08299939]
[1748037039279,1.09271479,663.25,662.85,1.08299939]
[1748037039475,1.09271479,663.24,662.85,1.08299939]
[1748037039674,1.09271479,663.23,662.85,1.08299939]
[1748037039973,1.09271479,663.22,662.85,1.08299939]
[1748037040173,1.11581188,663.27,662.85,1.08299939]
[1748037040378,1.09245672,663.26,662.85,1.08299939]
[1748037040677,1.09245672,663.25,662.85,1.08299939]
[1748037040878,1.09245672,663.24,662.85,1.08299939]
[1748037041177,1.09245672,663.23,662.85,1.08299939]
[1748037041376,1.11581188,663.27,662.85,1.08299939]
[1748037041574,1.09239751,663.26,662.85,1.08299939]
[1748037041777,1.09239751,663.25,662.85,1.08299939]
[1748037041978,1.09239751,663.24,662.85,1.08299939]
[1748037042175,1.09239751,663.23,662.85,1.08299939]
[1748037042376,1.11581188,663.27,662.85,1.08299939]
[1748037042581,0.26238605,663.76,662.85,1.08299939]
[1748037042582,1.09235046,663.26,662.85,1.08299939]
[1748037042783,1.09235468,663.25,662.85,1.08299939]
[1748037042976,1.09235468,663.24,662.85,1.08299939]
[1748037043177,1.09235468,663.23,662.85,1.08299939]
[1748037043383,1.11581188,663.31,662.85,1.08299939]
[1748037043677,1.56536992,663.3,662.85,1.08299939]
[1748037043877,1.56536992,663.29,662.85,1.08299939]
[1748037044079,1.09232164,663.28,662.85,1.08299939]
[1748037044282,1.09232164,663.27,662.85,1.08299939]
[1748037044483,1.09229494,663.26,662.85,1.08299939]
[1748037044683,1.09229494,663.25,662.85,1.08299939]
[1748037044883,1.11581188,663.31,662.85,1.08299939]
[1748037044884,1.09229494,663.24,662.85,1.08299939]
[1748037045184,1.09229494,663.23,662.85,1.08299939]
[1748037045384,1.11581188,663.31,662.85,1.08299939]
[1748037045584,1.56507752,663.3,662.85,1.08299939]
[1748037045784,1.56507752,663.29,662.85,1.08299939]
[1748037045984,1.09226184,663.28,662.85,1.08299939]
[1748037046185,1.09226184,663.27,662.85,1.08299939]
[1748037046382,1.09226184,663.26,662.85,1.08299939]
[1748037046587,1.09226184,663.25,662.82,1.08299939]
[1748037046786,1.09226184,663.24,662.82,1.08299939]
[1748037046980,1.09226184,663.23,662.82,1.08299939]
[1748037047181,1.11581188,663.33,662.82,1.08299939]
[1748037047386,1.56477845,663.32,662.82,1.08299939]
[1748037047586,1.56477845,663.31,662.82,1.08299939]
[1748037047784,1.56477845,663.3,662.82,1.08299939]
[1748037048088,1.56477845,663.29,662.82,1.08299939]
[1748037048387,1.09198532,663.28,662.82,1.08299939]
[1748037048588,1.09198532,663.27,662.82,1.08299939]
[1748037048788,1.09198532,663.26,662.82,1.08299939]
[1748037049088,1.09198532,663.25,662.82,1.08299939]
[1748037049390,1.11581188,663.33,662.82,1.08299939]
[1748037049391,1.09198532,663.24,662.82,1.08299939]
[1748037049584,1.11581188,663.33,662.82,1.08299939]
[1748037049784,1.5647187,663.32,662.82,1.08299939]
[1748037049988,1.56472111,663.31,662.82,1.08299939]
[1748037050290,1.56472111,663.3,662.83,1.08299939]
[1748037050484,1.56472111,663.29,662.83,1.08299939]
[1748037050686,1.09194536,663.28,662.83,1.08299939]
[1748037050886,1.09194536,663.27,662.83,1.08299939]
[1748037051086,1.09194536,663.26,662.83,1.08299939]
[1748037051289,1.09194536,663.25,662.83,1.08299939]
[1748037051487,1.09194536,663.24,662.83,1.08299939]
[1748037051690,1.09194536,663.23,662.83,1.08299939]
[1748037051890,1.11581188,663.32,662.83,1.08299939]
[1748037052190,1.564698,663.31,662.83,1.08299939]
[1748037052392,1.564698,663.3,662.83,1.08299939]
[1748037052686,1.564698,663.29,662.83,1.08299939]
[1748037052886,1.09192888,663.28,662.83,1.08299939]
[1748037053091,1.09192888,663.27,662.83,1.08299939]
[1748037053287,1.09192888,663.26,662.83,1.08299939]
[1748037053492,1.09192888,663.25,662.83,1.08299939]
[1748037053690,1.09192888,663.24,662.83,1.08299939]
[1748037053889,1.11581188,663.32,662.83,1.08299939]
[1748037054089,1.56458388,663.31,662.83,1.08299939]
[1748037054292,1.56458388,663.3,662.8,1.08299939]
[1748037054488,1.56458388,663.29,662.8,1.08299939]
[1748037054691,1.09182043,663.28,662.8,1.08299939]
[1748037054893,1.09182043,663.27,662.8,1.08299939]
[1748037055092,1.09182043,663.26,662.8,1.08299939]
[1748037055290,1.09182043,663.25,662.8,1.08299939]
[1748037055493,1.09182255,663.24,662.8,1.08299939]
[1748037055695,1.11581188,663.36,662.8,1.08299939]
[1748037055996,1.56457631,663.35,662.8,1.08299939]
[1748037056188,1.56457631,663.34,662.8,1.08299939]
[1748037056391,1.56457631,663.33,662.8,1.08299939]
[1748037056593,1.56457631,663.32,662.8,1.08299939]
[1748037056793,1.56457631,663.31,662.8,1.08299939]
[1748037056994,1.56457631,663.3,662.8,1.08299939]
[1748037057195,1.56460145,663.29,662.8,1.08299939]
[1748037057395,1.09183543,663.28,662.8,1.08299939]
[1748037057595,1.09183543,663.27,662.8,1.08299939]
[1748037057894,1.09183543,663.26,662.8,1.08299939]
[1748037058091,1.09183543,663.25,662.81,1.08299939]
[1748037058296,1.09183543,663.24,662.81,1.08299939]
[1748037058595,1.11581188,663.35,662.81,1.08299939]
[1748037058795,1.56459132,663.34,662.81,1.08299939]
[1748037058997,1.56462704,663.33,662.81,1.08299939]
[1748037059198,1.56462704,663.32,662.81,1.08299939]
[1748037059399,1.56462704,663.31,662.81,1.08299939]
[1748037059600,1.56462704,663.3,662.81,1.08299939]
[1748037059800,1.56462704,663.29,662.81,1.08299939]
[1748037060096,1.09184985,663.28,662.81,1.08299939]
[1748037060295,1.09184985,663.27,662.81,1.08299939]
[1748037060499,1.09184985,663.26,662.81,1.08299939]
[1748037060695,1.09186437,663.25,662.81,1.08299939]
[1748037060895,1.09186437,663.24,662.81,1.08299939]
[1748037061095,1.09186437,663.23,662.81,1.08299939]
[1748037061297,1.11581188,663.39,662.75,1.08299939]
[1748037061501,1.56464188,663.38,662.75,1.08299939]
[1748037061798,1.56464188,663.37,662.75,1.08299939]
[1748037062102,1.56466445,663.36,662.75,1.08299939]
[1748037062404,1.56471572,663.35,662.75,1.08299939]
[1748037062604,1.56471572,663.34,662.75,1.08299939]
[1748037062800,1.56471572,663.33,662.75,1.08299939]
[1748037063001,1.56471572,663.32,662.75,1.08299939]
[1748037063299,1.56471572,663.31,662.75,1.08299939]
[1748037063502,1.56471572,663.3,662.75,1.08299939]
[1748037063703,1.56471572,663.29,662.75,1.08299939]
[1748037064002,1.564753,663.28,662.75,1.08299939]
[1748037064202,1.564753,663.27,662.74,1.08299939]
[1748037064403,1.09192795,663.26,662.74,1.08299939]
[1748037064602,1.09192795,663.25,662.74,1.08299939]
[1748037064801,1.09192795,663.24,662.74,1.08299939]
[1748037065003,1.09192795,663.23,662.74,1.08299939]
[1748037065201,1.09192795,663.22,662.74,1.08299939]
[1748037065404,1.09192795,663.21,662.74,1.08299939]
[1748037065605,1.11581188,663.38,662.74,1.08299939]
[1748037065800,1.564915,663.37,662.74,1.08299939]
[1748037066003,1.564915,663.36,662.74,1.08299939]
[1748037066200,1.564915,663.35,662.74,1.08299939]
[1748037066499,1.564915,663.34,662.74,1.08299939]
[1748037066701,1.564915,663.33,662.74,1.08299939]
[1748037066902,1.564915,663.32,662.74,1.08299939]
[1748037067104,1.564915,663.31,662.75,1.08299939]
[1748037067305,1.564915,663.3,662.75,1.08299939]
[1748037067507,1.56497633,663.29,662.75,1.08299939]
[1748037067706,1.56497633,663.28,662.75,1.08299939]
[1748037067901,1.56497633,663.27,662.75,1.08299939]
[1748037068101,1.56497633,663.26,662.75,1.08299939]
[1748037068305,1.09207276,663.25,662.75,1.08299939]
[1748037068505,1.09207276,663.24,662.75,1.08299939]
[1748037068707,1.09207276,663.23,662.75,1.08299939]
[1748037068912,1.09207276,663.22,662.75,1.08299939]
[1748037069107,1.09207276,663.21,662.75,1.08299939]
[1748037069315,1.0921723,663.2,662.75,1.08299939]
[1748037069614,1.11581188,663.35,662.75,1.08299939]
[1748037069814,1.56513541,663.34,662.75,1.08299939]
[1748037070014,1.56513541,663.33,662.75,1.08299939]
[1748037070207,1.56513541,663.32,662.75,1.08299939]
[1748037070412,1.56513541,663.31,662.75,1.08299939]
[1748037070611,1.56513541,663.3,662.75,1.08299939]
[1748037070809,1.56513541,663.29,662.77,1.08299939]
[1748037071011,1.56516084,663.28,662.77,1.08299939]
[1748037071212,1.56516084,663.27,662.77,1.08299939]
[1748037071409,1.56516084,663.26,662.77,1.08299939]
[1748037071608,1.56516084,663.25,662.77,1.08299939]
[1748037071814,1.09218384,663.24,662.77,1.08299939]
[1748037072014,1.09218384,663.23,662.77,1.08299939]
[1748037072214,1.09218384,663.22,662.77,1.08299939]
[1748037072415,1.09218384,663.21,662.77,1.08299939]
[1748037072716,1.09218384,663.2,662.77,1.08299939]
[1748037072914,1.11581188,663.33,662.77,1.08299939]
[1748037073115,1.11581188,663.27,662.83,1.08299939]
[1748037073410,1.56539293,663.26,662.83,1.08299939]
[1748037073614,1.56539293,663.25,662.83,1.08299939]
[1748037073816,1.09236345,663.24,662.83,1.08299939]
[1748037074010,1.09236345,663.23,662.83,1.08299939]
[1748037074211,1.09236345,663.22,662.83,1.08299939]
[1748037074414,1.09236345,663.21,662.83,1.08299939]
[1748037074709,1.11581188,663.27,662.83,1.08299939]
[1748037074710,1.09251098,663.2,662.83,1.08299939]
[1748037074911,1.09251098,663.19,662.83,1.08299939]
[1748037075214,1.11581188,663.27,662.83,1.08299939]
[1748037075412,1.56562909,663.26,662.83,1.08299939]
[1748037075613,1.56562909,663.25,662.83,1.08299939]
[1748037075812,1.09249912,663.24,662.83,1.08299939]
[1748037076113,1.09249912,663.23,662.85,1.08299939]
[1748037076315,1.09249912,663.22,662.85,1.08299939]
[1748037076512,1.09262194,663.21,662.85,1.08299939]
[1748037076713,1.09262194,663.2,662.85,1.08299939]
[1748037077016,1.09262194,663.19,662.85,1.08299939]
[1748037077218,1.09262194,663.18,662.85,1.08299939]
[1748037077518,1.11581188,663.25,662.85,1.08299939]
[1748037077717,1.56579838,663.24,662.85,1.08299939]
[1748037077917,1.56579848,663.23,662.85,1.08299939]
[1748037078118,1.0926166,663.22,662.85,1.08299939]
[1748037078417,1.09261044,663.21,662.85,1.08299939]
[1748037078618,1.09261044,663.2,662.85,1.08299939]
[1748037078913,1.09261044,663.19,662.85,1.08299939]
[1748037079118,1.09261044,663.18,662.85,1.08299939]
[1748037079319,1.11581188,663.25,662.85,1.08299939]
[1748037079519,1.56579145,663.24,662.83,1.08299939]
[1748037079818,1.56579145,663.23,662.83,1.08299939]
[1748037080015,1.11581188,663.26,662.83,1.08299939]
[1748037080219,1.56546994,663.25,662.83,1.08299939]
[1748037080513,1.56546994,663.24,662.83,1.08299939]
[1748037080718,1.09229005,663.23,662.83,1.08299939]
[1748037080920,1.09229005,663.22,662.83,1.08299939]
[1748037081118,1.09229005,663.21,662.83,1.08299939]
[1748037081319,1.09229005,663.2,662.83,1.08299939]
[1748037081520,1.09229005,663.19,662.83,1.08299939]
[1748037081720,1.09229005,663.18,662.83,1.08299939]
[1748037081922,1.11581188,663.26,662.83,1.08299939]
[1748037082123,1.56531205,663.25,662.83,1.08299939]
[1748037082324,1.56531205,663.24,662.83,1.08299939]
[1748037082522,1.56531205,663.23,662.83,1.08299939]
[1748037082722,1.09212807,663.22,662.83,1.08299939]
[1748037082918,1.09212807,663.21,662.83,1.08299939]
[1748037083119,1.09212807,663.2,662.83,1.08299939]
[1748037083323,1.09212807,663.19,662.83,1.08299939]
[1748037083520,1.09212807,663.18,662.83,1.08299939]
[1748037083717,1.09215538,663.17,662.83,1.08299939]
[1748037083921,1.09215538,663.16,662.83,1.08299939]
[1748037084220,1.09215538,663.15,662.83,1.08299939]
[1748037084420,1.09215538,663.14,662.83,1.08299939]
[1748037084619,1.11581188,663.25,662.83,1.08299939]
[1748037084818,1.56530878,663.24,662.83,1.08299939]
[1748037085117,1.56530878,663.23,662.83,1.08299939]
[1748037085321,1.56530878,663.22,662.83,1.08299939]
[1748037085520,1.47858075,663.38,661.96,0.48002857]
[1748037085521,1.56529347,663.21,662.77,1.08299939]
[1748037085817,1.56529347,663.2,662.77,1.08299939]
[1748037086017,1.11581188,663.24,662.77,1.08299939]
[1748037086018,1.09211009,663.19,662.77,1.08299939]
[1748037086220,1.09211009,663.18,662.77,1.08299939]
[1748037086419,1.09211009,663.17,662.77,1.08299939]
[1748037086721,1.09211009,663.16,662.77,1.08299939]
[1748037086921,1.09211009,663.15,662.77,1.08299939]
[1748037087119,1.11581188,663.24,662.77,1.08299939]
[1748037087325,1.56522278,663.23,662.77,1.08299939]
[1748037087624,1.56522278,663.22,662.77,1.08299939]
[1748037087923,1.56522278,663.21,662.77,1.08299939]
[1748037088124,1.56522278,663.2,662.77,1.08299939]
[1748037088322,1.09207524,663.19,662.77,1.08299939]
[1748037088523,1.09207524,663.18,662.77,1.08299939]
[1748037088720,1.09207524,663.17,662.79,1.08299939]
[1748037088925,1.09207524,663.16,662.79,1.08299939]
[1748037089125,1.09207524,663.15,662.79,1.08299939]
[1748037089319,1.11581188,663.23,662.79,1.08299939]
[1748037089522,1.56508242,663.22,662.79,1.08299939]
[1748037089719,1.56508242,663.21,662.79,1.08299939]
[1748037090025,1.56508242,663.2,662.79,1.08299939]
[1748037090225,1.09196758,663.19,662.79,1.08299939]
[1748037090425,1.09196758,663.18,662.79,1.08299939]
[1748037090620,1.09196758,663.17,662.79,1.08299939]
[1748037090820,1.09196758,663.16,662.79,1.08299939]
[1748037091023,1.09196758,663.15,662.79,1.08299939]
[1748037091222,1.11581188,663.23,662.79,1.08299939]
[1748037091521,1.56496812,663.22,662.79,1.08299939]
[1748037091723,1.11581188,663.23,662.79,1.08299939]
[1748037091724,1.56496812,663.21,662.79,1.08299939]
[1748037091923,1.09188807,663.2,662.79,1.08299939]
[1748037092124,1.09188807,663.19,662.76,1.08299939]
[1748037092419,1.09188807,663.18,662.76,1.08299939]
[1748037092624,1.09188807,663.17,662.76,1.08299939]
[1748037092826,1.09182406,663.16,662.76,1.08299939]
[1748037093023,1.09182406,663.15,662.76,1.08299939]
[1748037093221,1.11581188,663.25,662.76,1.08299939]
[1748037093424,1.56487758,663.24,662.76,1.08299939]
[1748037093626,1.11581188,663.25,662.76,1.08299939]
[1748037093627,1.56487758,663.23,662.76,1.08299939]
[1748037093822,1.56487758,663.22,662.76,1.08299939]
[1748037094119,1.56487758,663.21,662.76,1.08299939]
[1748037094326,1.09182466,663.2,662.76,1.08299939]
[1748037094621,1.09182466,663.19,662.76,1.08299939]
[1748037094924,1.09182466,663.18,662.76,1.08299939]
[1748037095227,1.09182466,663.17,662.77,1.08299939]
[1748037095527,1.09182466,663.16,662.77,1.08299939]
[1748037095728,1.11581188,663.24,662.77,1.08299939]
[1748037096029,1.56472984,663.23,662.77,1.08299939]
[1748037096229,1.56472984,663.22,662.77,1.08299939]
[1748037096426,1.56469079,663.21,662.77,1.08299939]
[1748037096626,1.09169469,663.2,662.77,1.08299939]
[1748037096826,1.09169469,663.19,662.77,1.08299939]
[1748037097025,1.09169469,663.18,662.77,1.08299939]
[1748037097226,1.09169469,663.17,662.77,1.08299939]
[1748037097532,1.0916843,663.16,662.77,1.08299939]
[1748037097831,1.11581188,663.24,662.77,1.08299939]
[1748037098025,1.56465158,663.23,662.77,1.08299939]
[1748037098225,1.56465158,663.22,662.77,1.08299939]
[1748037098428,1.56464325,663.21,662.77,1.08299939]
[1748037098629,1.09165908,663.2,662.77,1.08299939]
[1748037098826,1.09165908,663.19,662.77,1.08299939]
[1748037099126,1.09165908,663.18,662.77,1.08299939]
[1748037099328,1.09165908,663.17,662.77,1.08299939]
[1748037099526,1.09165908,663.16,662.77,1.08299939]
[1748037099728,1.11581188,663.25,662.77,1.08299939]
[1748037099930,1.56459789,663.24,662.77,1.08299939]
[1748037100125,1.56459789,663.23,662.77,1.08299939]
[1748037100325,1.56459789,663.22,662.77,1.08299939]
[1748037100631,1.09162958,663.21,662.77,1.08299939]
[1748037100929,1.09162958,663.2,662.77,1.08299939]
[1748037101127,1.09162958,663.19,662.77,1.08299939]
[1748037101324,1.56460921,663.18,662.78,1.08299939]
[1748037101533,1.56460921,663.17,662.78,1.08299939]
[1748037101731,1.56460921,663.16,662.78,1.08299939]
[1748037102030,1.11581188,663.24,662.78,1.08299939]
[1748037102031,1.56457632,663.15,662.78,1.08299939]
[1748037102227,1.09162958,663.14,662.78,1.08299939]
[1748037102531,1.09162958,663.13,662.78,1.08299939]
[1748037102830,1.09162958,663.12,662.78,1.08299939]
[1748037103025,1.11581188,663.24,662.78,1.08299939]
[1748037103229,1.56424696,663.23,662.78,1.08299939]
[1748037103429,1.56424696,663.22,662.78,1.08299939]
[1748037103628,1.56424696,663.21,662.78,1.08299939]
[1748037103830,1.56415688,663.2,662.78,1.08299939]
[1748037104030,1.56415688,663.19,662.78,1.08299939]
[1748037104231,1.56415688,663.18,662.66,1.08299939]
[1748037104426,1.09131735,663.17,662.66,1.08299939]
[1748037104624,1.09131735,663.16,662.66,1.08299939]
[1748037104929,1.09131735,663.15,662.66,1.08299939]
[1748037105129,1.09131735,663.14,662.66,1.08299939]
[1748037105331,1.09131735,663.13,662.66,1.08299939]
[1748037105629,1.11581188,663.25,662.66,1.08299939]
[1748037105827,1.56360332,663.24,662.66,1.08299939]
[1748037106125,1.56360332,663.23,662.66,1.08299939]
[1748037106329,1.56360332,663.22,662.66,1.08299939]
[1748037106530,1.56360332,663.21,662.66,1.08299939]
[1748037106827,1.56360332,663.2,662.66,1.08299939]
[1748037107029,1.56360332,663.19,662.66,1.08299939]
[1748037107226,1.09122977,663.18,662.66,1.08299939]
[1748037107427,1.09120083,663.17,662.66,1.08299939]
[1748037107631,1.09120083,663.16,662.66,1.08299939]
[1748037107832,1.09120083,663.15,662.66,1.08299939]
[1748037108030,1.09120083,663.14,662.66,1.08299939]
[1748037108233,1.09120083,663.13,662.67,1.08299939]
[1748037108433,1.11581188,663.27,662.67,1.08299939]
[1748037108633,1.56348598,663.26,662.67,1.08299939]
[1748037108832,1.56348598,663.25,662.67,1.08299939]
[1748037109035,1.56348598,663.24,662.67,1.08299939]
[1748037109334,1.56349567,663.23,662.67,1.08299939]
[1748037109635,1.56349567,663.22,662.67,1.08299939]
[1748037109835,1.56349567,663.21,662.67,1.08299939]
[1748037110137,1.56349567,663.2,662.67,1.08299939]
[1748037110438,1.56349567,663.19,662.67,1.08299939]
[1748037110639,1.56349567,663.18,662.67,1.08299939]
[1748037110834,1.09115682,663.17,662.62,1.08299939]
[1748037111039,1.09110644,663.16,662.62,1.08299939]
[1748037111234,1.09110644,663.15,662.62,1.08299939]
[1748037111435,1.09110644,663.14,662.62,1.08299939]
[1748037111638,1.09110644,663.13,662.62,1.08299939]
[1748037111836,1.11581188,663.28,662.62,1.08299939]
[1748037112037,1.56337881,663.27,662.62,1.08299939]
[1748037112234,1.56337881,663.26,662.62,1.08299939]
[1748037112433,1.56337881,663.25,662.62,1.08299939]
[1748037112639,1.56337881,663.24,662.62,1.08299939]
[1748037112839,1.56336146,663.23,662.62,1.08299939]
[1748037113034,1.56336146,663.22,662.62,1.08299939]
[1748037113236,1.56336146,663.21,662.62,1.08299939]
[1748037113438,1.56336146,663.2,662.64,1.08299939]
[1748037113638,1.56336146,663.19,662.64,1.08299939]
[1748037113840,1.56336146,663.18,662.64,1.08299939]
[1748037114045,1.0910645,663.17,662.64,1.08299939]
[1748037114244,1.0910645,663.16,662.64,1.08299939]
[1748037114441,1.0910645,663.15,662.64,1.08299939]
[1748037114638,1.0910645,663.14,662.64,1.08299939]
[1748037114841,1.0910645,663.13,662.64,1.08299939]
[1748037115040,1.0910645,663.12,662.64,1.08299939]
[1748037115241,1.11581188,663.25,662.64,1.08299939]
[1748037115442,1.56337664,663.24,662.64,1.08299939]
[1748037115643,1.56337664,663.23,662.64,1.08299939]
[1748037115844,1.56336143,663.22,662.64,1.08299939]
[1748037116145,1.56336143,663.21,662.64,1.08299939]
[1748037116341,1.56336143,663.2,662.64,1.08299939]
[1748037116542,1.56331829,663.19,662.64,1.08299939]
[1748037116746,1.56331829,663.18,662.64,1.08299939]
[1748037116944,1.09104855,663.17,662.64,1.08299939]
[1748037117137,1.09104855,663.16,662.64,1.08299939]
[1748037117339,1.09104855,663.15,662.64,1.08299939]
[1748037117540,1.09104855,663.14,662.64,1.08299939]
[1748037117744,1.09104855,663.13,662.64,1.08299939]
[1748037117944,1.09104855,663.12,662.64,1.08299939]
[1748037118245,1.11581188,663.25,662.64,1.08299939]
[1748037118447,1.56336373,663.24,662.64,1.08299939]
[1748037118647,1.56336373,663.23,662.64,1.08299939]
[1748037118846,1.56336373,663.22,662.64,1.08299939]
[1748037119141,1.11581188,663.26,662.64,1.08299939]
[1748037119142,1.56336373,663.21,662.64,1.08299939]
[1748037119346,1.56336373,663.2,662.64,1.08299939]
[1748037119546,1.56336373,663.19,662.64,1.08299939]
[1748037119744,1.56336373,663.18,662.64,1.08299939]
[1748037119946,1.0910805,663.17,662.64,1.08299939]
[1748037120142,1.09108503,663.16,662.64,1.08299939]
[1748037120344,1.09108503,663.15,662.64,1.08299939]
[1748037120545,1.09108503,663.14,662.64,1.08299939]
[1748037120746,1.09108503,663.13,662.64,1.08299939]
[1748037120946,1.09108503,663.12,662.64,1.08299939]
[1748037121146,1.09108503,663.11,662.64,1.08299939]
[1748037121343,1.11581188,663.26,662.7,1.08299939]
[1748037121546,1.11581188,663.18,662.7,1.08299939]
[1748037121747,1.56338682,663.17,662.7,1.08299939]
[1748037121951,1.09109553,663.16,662.7,1.08299939]
[1748037122151,1.09109553,663.15,662.7,1.08299939]
[1748037122451,1.09109553,663.14,662.7,1.08299939]
[1748037122750,1.09109553,663.13,662.7,1.08299939]
[1748037122950,1.09109553,663.12,662.7,1.08299939]
[1748037123153,1.0909529,663.11,662.7,1.08299939]
[1748037123350,1.11581188,663.18,662.7,1.08299939]
[1748037123547,1.56323207,663.17,662.7,1.08299939]
[1748037123752,1.09094873,663.16,662.7,1.08299939]
[1748037123947,1.09094873,663.15,662.7,1.08299939]
[1748037124151,1.09094873,663.14,662.7,1.08299939]
[1748037124352,1.09094873,663.13,662.7,1.08299939]
[1748037124552,1.09094873,663.12,662.7,1.08299939]
[1748037124854,1.09095365,663.11,662.7,1.08299939]
[1748037125048,1.11581188,663.18,662.7,1.08299939]
[1748037125251,1.56323876,663.17,662.69,1.08299939]
[1748037125452,1.56323876,663.16,662.69,1.08299939]
[1748037125651,1.09095294,663.15,662.69,1.08299939]
[1748037125852,1.09095294,663.14,662.69,1.08299939]
[1748037126148,1.09095294,663.13,662.69,1.08299939]
[1748037126349,1.09095294,663.12,662.69,1.08299939]
[1748037126547,1.09095294,663.11,662.69,1.08299939]
[1748037126750,1.11581188,663.18,662.69,1.08299939]
[1748037126953,1.5632132,663.17,662.69,1.08299939]
[1748037127153,1.09093555,663.16,662.69,1.08299939]
[1748037127452,1.09093555,663.15,662.69,1.08299939]
[1748037127653,1.09093555,663.14,662.69,1.08299939]
[1748037127852,1.09093555,663.13,662.69,1.08299939]
[1748037128049,1.09093555,663.12,662.69,1.08299939]
[1748037128351,1.09093555,663.11,662.69,1.08299939]
[1748037128552,1.11581188,663.18,662.7,1.08299939]
[1748037128754,1.56323631,663.17,662.7,1.08299939]
[1748037128954,1.0909515,663.16,662.7,1.08299939]
[1748037129249,1.0909515,663.15,662.7,1.08299939]
[1748037129449,1.0909515,663.14,662.7,1.08299939]
[1748037129753,1.0909515,663.13,662.7,1.08299939]
[1748037129951,1.0909515,663.12,662.7,1.08299939]
[1748037130153,1.0909515,663.11,662.7,1.08299939]
[1748037130353,1.11581188,663.18,662.7,1.08299939]
[1748037130548,1.56331625,663.17,662.7,1.08299939]
[1748037130753,1.09101723,663.16,662.7,1.08299939]
[1748037130954,1.09101723,663.15,662.7,1.08299939]
[1748037131253,1.09101723,663.14,662.7,1.08299939]
[1748037131450,1.09101723,663.13,662.7,1.08299939]
[1748037131649,1.09101723,663.12,662.7,1.08299939]
[1748037131854,1.09101723,663.11,662.7,1.08299939]
[1748037132052,1.11581188,663.18,662.7,1.08299939]
[1748037132253,1.56344715,663.17,662.7,1.08299939]
[1748037132452,1.56345964,663.16,662.7,1.08299939]
[1748037132648,1.09113759,663.15,662.7,1.08299939]
[1748037132853,1.09113759,663.14,662.7,1.08299939]
[1748037133050,1.09113759,663.13,662.7,1.08299939]
[1748037133249,1.11581188,663.18,662.7,1.08299939]
[1748037133250,1.09113759,663.12,662.7,1.08299939]
[1748037133449,1.09113759,663.11,662.7,1.08299939]
[1748037133655,1.11581188,663.18,662.7,1.08299939]
[1748037133850,1.56352291,663.17,662.7,1.08299939]
[1748037134055,1.09119092,663.16,662.7,1.08299939]
[1748037134255,1.09119092,663.15,662.7,1.08299939]
[1748037134453,1.09119092,663.14,662.7,1.08299939]
[1748037134654,1.09119092,663.13,662.7,1.08299939]
[1748037134953,1.09119092,663.12,662.7,1.08299939]
[1748037135154,1.09119092,663.11,662.7,1.08299939]
[1748037135354,1.11581188,663.18,662.7,1.08299939]
[1748037135655,1.56364853,663.17,662.7,1.08299939]
[1748037135851,1.09127674,663.16,662.7,1.08299939]
[1748037136051,1.09127674,663.15,662.7,1.08299939]
[1748037136249,1.09127674,663.14,662.7,1.08299939]
[1748037136455,1.09127674,663.13,662.7,1.08299939]
[1748037136654,1.09127674,663.12,662.7,1.08299939]
[1748037136854,1.09127674,663.11,662.7,1.08299939]
[1748037137057,1.11581188,663.18,662.7,1.08299939]
[1748037137259,1.56372386,663.17,662.7,1.08299939]
[1748037137458,1.56372386,663.16,662.7,1.08299939]
[1748037137659,1.09137469,663.15,662.7,1.08299939]
[1748037137854,1.09137469,663.14,662.7,1.08299939]
[1748037138058,1.09137469,663.13,662.7,1.08299939]
[1748037138253,1.09137469,663.12,662.7,1.08299939]
[1748037138455,1.09137469,663.11,662.7,1.08299939]
[1748037138658,1.09137469,663.1,662.7,1.08299939]
[1748037138855,1.11581188,663.18,662.7,1.08299939]
[1748037139054,1.56385391,663.17,662.7,1.08299939]
[1748037139255,1.56385391,663.16,662.7,1.08299939]
[1748037139458,1.09147433,663.15,662.7,1.08299939]
[1748037139759,1.09147433,663.14,662.7,1.08299939]
[1748037139960,1.09147433,663.13,662.7,1.08299939]
[1748037140160,1.09147433,663.12,662.7,1.08299939]
[1748037140357,1.09147433,663.11,662.7,1.08299939]
[1748037140558,1.09147433,663.1,662.7,1.08299939]